[Event "*** Titled Tuesday Blitz"]
[Site "Chess.com"]
[Date "2019.02.05"]
[Round "7"]
[White "AsaHoffmann"]
[Black "amiralfio"]
[Result "1-0"]
[WhiteElo "2208"]
[BlackElo "2364"]
[TimeControl "180+2"]
[EndTime "14:37:37 PST"]
[Termination "AsaHoffmann won by resignation"]

1. d4 {[%clk 0:02:59]} 1... d5 {[%clk 0:03:00.7]} 2. Bg5 {[%clk 0:02:58.3]} 2...
g6 {[%clk 0:02:59.5]} 3. Qd2 {[%clk 0:02:57.5]} 3... Bg7 {[%clk 0:03:00.3]} 4.
Nc3 {[%clk 0:02:57.4]} 4... c6 {[%clk 0:03:00.4]} 5. f3 {[%clk 0:02:56.7]} 5...
b5 {[%clk 0:03:01.4]} 6. a3 {[%clk 0:02:43]} 6... Qb6 {[%clk 0:03:00.1]} 7. e3
{[%clk 0:02:39.6]} 7... Nf6 {[%clk 0:02:58.1]} 8. Bd3 {[%clk 0:02:39.1]} 8...
Nbd7 {[%clk 0:02:56.7]} 9. Nge2 {[%clk 0:02:35.6]} 9... e5 {[%clk 0:02:54.7]}
10. O-O {[%clk 0:02:33.9]} 10... O-O {[%clk 0:02:53.3]} 11. Kh1 {[%clk
0:02:34.2]} 11... Re8 {[%clk 0:02:49]} 12. dxe5 {[%clk 0:02:16.1]} 12... Nxe5
{[%clk 0:02:48.5]} 13. e4 {[%clk 0:02:12.1]} 13... d4 {[%clk 0:02:34.2]} 14. Nd1
{[%clk 0:02:07.6]} 14... c5 {[%clk 0:02:34.7]} 15. Ng3 {[%clk 0:01:55.4]} 15...
c4 {[%clk 0:02:30.5]} 16. Be2 {[%clk 0:01:55.5]} 16... Bb7 {[%clk 0:02:19.9]}
17. Qf4 {[%clk 0:01:51.1]} 17... d3 {[%clk 0:02:10.2]} 18. cxd3 {[%clk
0:01:46.5]} 18... cxd3 {[%clk 0:02:11]} 19. Nc3 {[%clk 0:01:38]} 19... dxe2
{[%clk 0:02:11.3]} 20. Ncxe2 {[%clk 0:01:37.9]} 20... Nd3 {[%clk 0:02:05.8]} 21.
Qh4 {[%clk 0:01:36.9]} 21... Rac8 {[%clk 0:01:29.2]} 22. Nf4 {[%clk 0:01:29.3]}
22... Nxf4 {[%clk 0:01:18.5]} 23. Qxf4 {[%clk 0:01:29.1]} 23... Rc2 {[%clk
0:01:18.7]} 24. Rad1 {[%clk 0:01:24]} 24... Rxb2 {[%clk 0:01:10.5]} 25. Rd6
{[%clk 0:01:22.3]} 25... Qc5 {[%clk 0:01:00.2]} 26. Bxf6 {[%clk 0:01:20]} 26...
Qc2 {[%clk 0:00:49.8]} 27. Bxb2 {[%clk 0:01:15.5]} 27... Bxb2 {[%clk 0:00:47.9]}
28. Rd7 {[%clk 0:01:15.3]} 1-0

[Event "*** Titled Tuesday Blitz"]
[Site "Chess.com"]
[Date "2019.02.05"]
[Round "7"]
[White "Shukh_Nikolay"]
[Black "Frolik67"]
[Result "1-0"]
[WhiteElo "2412"]
[BlackElo "2522"]
[TimeControl "180+2"]
[EndTime "14:37:43 PST"]
[Termination "Shukh_Nikolay won by resignation"]

1. d4 {[%clk 0:03:01.9]} 1... e6 {[%clk 0:02:59.9]} 2. e4 {[%clk 0:03:02.5]}
2... d5 {[%clk 0:03:00.2]} 3. Nc3 {[%clk 0:03:02.9]} 3... dxe4 {[%clk 0:03:00]}
4. Nxe4 {[%clk 0:03:03.6]} 4... Nd7 {[%clk 0:03:01.3]} 5. Bd3 {[%clk 0:03:04.9]}
5... Ngf6 {[%clk 0:03:02.1]} 6. Qe2 {[%clk 0:03:06.2]} 6... Be7 {[%clk 0:03:03]}
7. Nf3 {[%clk 0:03:05.4]} 7... b6 {[%clk 0:03:04]} 8. Bd2 {[%clk 0:03:06.2]}
8... Bb7 {[%clk 0:03:04.5]} 9. O-O-O {[%clk 0:03:07.4]} 9... a5 {[%clk
0:03:00.5]} 10. g4 {[%clk 0:03:07.3]} 10... h6 {[%clk 0:02:21.9]} 11. Rhg1
{[%clk 0:03:02.9]} 11... a4 {[%clk 0:02:18.6]} 12. Kb1 {[%clk 0:02:56.9]} 12...
a3 {[%clk 0:02:17.3]} 13. b3 {[%clk 0:02:58.1]} 13... Qc8 {[%clk 0:01:43.6]} 14.
h4 {[%clk 0:02:57.7]} 14... Nxe4 {[%clk 0:01:32.7]} 15. Bxe4 {[%clk 0:02:58.5]}
15... Nf6 {[%clk 0:01:34.2]} 16. Bxb7 {[%clk 0:02:56.5]} 16... Qxb7 {[%clk
0:01:36.1]} 17. g5 {[%clk 0:02:56.6]} 17... hxg5 {[%clk 0:01:36.3]} 18. hxg5
{[%clk 0:02:57.7]} 18... Ne4 {[%clk 0:01:20.4]} 19. g6 {[%clk 0:02:55.2]} 19...
f5 {[%clk 0:01:17.9]} 20. Ne5 {[%clk 0:02:52.7]} 20... O-O-O {[%clk 0:01:10.7]}
21. f3 {[%clk 0:02:46.4]} 21... Nxd2+ {[%clk 0:00:53.5]} 22. Rxd2 {[%clk
0:02:47.2]} 22... Bf6 {[%clk 0:00:43.4]} 23. Nf7 {[%clk 0:02:46.3]} 23... Qd5
{[%clk 0:00:27.2]} 24. Nxh8 {[%clk 0:02:43.4]} 24... Rxh8 {[%clk 0:00:28]} 25.
Re1 {[%clk 0:02:43.4]} 25... Kd7 {[%clk 0:00:27.9]} 26. c4 {[%clk 0:02:43.8]}
26... Qd6 {[%clk 0:00:29.1]} 27. c5 {[%clk 0:02:39]} 27... Qd5 {[%clk
0:00:30.2]} 28. Qb5+ {[%clk 0:02:39.1]} 28... Kc8 {[%clk 0:00:25.1]} 29. Qa6+
{[%clk 0:02:39.1]} 29... Kd7 {[%clk 0:00:25.5]} 30. cxb6 {[%clk 0:02:39.3]}
30... cxb6 {[%clk 0:00:18.5]} 31. Qxb6 {[%clk 0:02:38.9]} 31... Rc8 {[%clk
0:00:18.9]} 32. Rde2 {[%clk 0:02:34.1]} 32... Bxd4 {[%clk 0:00:17.7]} 33. Qxe6+
{[%clk 0:02:32.6]} 33... Qxe6 {[%clk 0:00:19]} 34. Rxe6 {[%clk 0:02:33.7]} 34...
Bb2 {[%clk 0:00:20.9]} 35. Re7+ {[%clk 0:02:32.1]} 35... Kd6 {[%clk 0:00:21.7]}
36. R7e2 {[%clk 0:02:31.5]} 36... Bf6 {[%clk 0:00:21.7]} 37. Rd2+ {[%clk
0:02:31.2]} 37... Kc7 {[%clk 0:00:21.4]} 38. Rc1+ {[%clk 0:02:32.3]} 38... Kb7
{[%clk 0:00:23]} 39. Rd7+ {[%clk 0:02:32.4]} 39... Kb8 {[%clk 0:00:23.9]} 40.
Rxc8+ {[%clk 0:02:33.4]} 40... Kxc8 {[%clk 0:00:25.8]} 41. Rf7 {[%clk
0:02:34.9]} 41... Bb2 {[%clk 0:00:25.4]} 42. Rxf5 {[%clk 0:02:35.6]} 42... Kd7
{[%clk 0:00:27.3]} 43. Rf7+ {[%clk 0:02:36.2]} 43... Ke6 {[%clk 0:00:29.2]} 44.
f4 {[%clk 0:02:37.6]} 44... Bf6 {[%clk 0:00:29.9]} 45. Kc2 {[%clk 0:02:37.3]}
45... Bg5 {[%clk 0:00:30.2]} 1-0

[Event "*** Titled Tuesday Blitz"]
[Site "Chess.com"]
[Date "2019.02.05"]
[Round "7"]
[White "Naruto-K"]
[Black "MateusViageiro"]
[Result "1-0"]
[WhiteElo "2364"]
[BlackElo "2195"]
[TimeControl "180+2"]
[EndTime "14:37:57 PST"]
[Termination "Naruto-K won by resignation"]

1. d4 {[%clk 0:03:01.3]} 1... Nf6 {[%clk 0:02:59.1]} 2. Bf4 {[%clk 0:03:02.8]}
2... g6 {[%clk 0:02:59.6]} 3. e3 {[%clk 0:03:03.6]} 3... Bg7 {[%clk 0:03:00]} 4.
Nf3 {[%clk 0:03:04.7]} 4... O-O {[%clk 0:02:58.5]} 5. Be2 {[%clk 0:03:05.9]}
5... d6 {[%clk 0:02:57.1]} 6. h3 {[%clk 0:03:06.1]} 6... Nbd7 {[%clk 0:02:53.3]}
7. O-O {[%clk 0:03:06.1]} 7... a6 {[%clk 0:02:51.6]} 8. a4 {[%clk 0:03:06.1]}
8... b6 {[%clk 0:02:51.3]} 9. Bh2 {[%clk 0:03:03.1]} 9... Bb7 {[%clk 0:02:50.1]}
10. Nc3 {[%clk 0:03:04.4]} 10... c5 {[%clk 0:02:48.1]} 11. d5 {[%clk 0:03:04.2]}
11... Re8 {[%clk 0:02:38]} 12. Bc4 {[%clk 0:03:02.2]} 12... h6 {[%clk 0:02:34]}
13. e4 {[%clk 0:03:02.9]} 13... Nh7 {[%clk 0:02:33.5]} 14. Re1 {[%clk
0:03:01.5]} 14... Ng5 {[%clk 0:02:32.1]} 15. Nxg5 {[%clk 0:02:58.6]} 15... hxg5
{[%clk 0:02:33.1]} 16. Qd2 {[%clk 0:02:50.8]} 16... Bf6 {[%clk 0:02:32.6]} 17.
Rab1 {[%clk 0:02:48.3]} 17... Kg7 {[%clk 0:02:30.9]} 18. Nd1 {[%clk 0:02:38.1]}
18... Rh8 {[%clk 0:02:27.2]} 19. Ne3 {[%clk 0:02:37.3]} 19... Ne5 {[%clk
0:02:19.6]} 20. Bf1 {[%clk 0:02:31.6]} 20... Bc8 {[%clk 0:02:13.3]} 21. Nc4
{[%clk 0:02:21.5]} 21... Nxc4 {[%clk 0:02:03.6]} 22. Bxc4 {[%clk 0:02:20.5]}
22... g4 {[%clk 0:02:02.8]} 23. hxg4 {[%clk 0:02:08.9]} 23... Bxg4 {[%clk
0:02:00.5]} 24. e5 {[%clk 0:01:46.1]} 24... dxe5 {[%clk 0:01:56.5]} 25. Bxe5
{[%clk 0:01:47.4]} 25... Bd7 {[%clk 0:01:46.3]} 26. Bxf6+ {[%clk 0:01:29.9]}
26... exf6 {[%clk 0:01:46.5]} 27. d6 {[%clk 0:01:31.3]} 27... b5 {[%clk
0:01:32.9]} 28. Bd5 {[%clk 0:01:29.8]} 28... f5 {[%clk 0:01:26.5]} 29. Re7
{[%clk 0:01:28.1]} 29... Be8 {[%clk 0:01:23.9]} 30. Qc3+ {[%clk 0:01:27.3]}
30... Kg8 {[%clk 0:01:20.5]} 31. Bxa8 {[%clk 0:01:26.9]} 31... Qxa8 {[%clk
0:01:20.5]} 32. Rbe1 {[%clk 0:01:24.3]} 32... Bc6 {[%clk 0:01:17.7]} 33. d7
{[%clk 0:01:20.9]} 1-0

[Event "*** Titled Tuesday Blitz"]
[Site "Chess.com"]
[Date "2019.02.05"]
[Round "7"]
[White "albi1999"]
[Black "vovachesss"]
[Result "0-1"]
[WhiteElo "2493"]
[BlackElo "2582"]
[TimeControl "180+2"]
[EndTime "14:37:58 PST"]
[Termination "vovachesss won by resignation"]

1. d4 {[%clk 0:03:00.7]} 1... Nf6 {[%clk 0:02:56]} 2. c4 {[%clk 0:03:02]} 2...
c5 {[%clk 0:02:57]} 3. d5 {[%clk 0:03:01]} 3... b5 {[%clk 0:02:58.6]} 4. cxb5
{[%clk 0:03:02.4]} 4... a6 {[%clk 0:03:00.2]} 5. bxa6 {[%clk 0:03:04.3]} 5... g6
{[%clk 0:03:01.5]} 6. Nc3 {[%clk 0:03:04.9]} 6... Bg7 {[%clk 0:03:03.1]} 7. e4
{[%clk 0:03:04.8]} 7... d6 {[%clk 0:03:04.7]} 8. Nf3 {[%clk 0:03:03.6]} 8... O-O
{[%clk 0:03:05.4]} 9. a4 {[%clk 0:03:01.2]} 9... Bxa6 {[%clk 0:03:06.1]} 10.
Bxa6 {[%clk 0:02:59.2]} 10... Nxa6 {[%clk 0:03:08]} 11. O-O {[%clk 0:02:58.9]}
11... Nb4 {[%clk 0:03:02.5]} 12. Qe2 {[%clk 0:02:52.7]} 12... Nd7 {[%clk
0:02:50.1]} 13. Ra3 {[%clk 0:02:50.6]} 13... Qa5 {[%clk 0:02:34.5]} 14. Nb5
{[%clk 0:02:43.3]} 14... Rfb8 {[%clk 0:02:32.4]} 15. b3 {[%clk 0:02:31.5]} 15...
h6 {[%clk 0:01:29.8]} 16. h4 {[%clk 0:02:30.8]} 16... Kh7 {[%clk 0:01:29.4]} 17.
h5 {[%clk 0:02:30.4]} 17... g5 {[%clk 0:01:29.5]} 18. Nh2 {[%clk 0:02:26.7]}
18... Ne5 {[%clk 0:01:06.9]} 19. Rd1 {[%clk 0:02:15.1]} 19... Nbd3 {[%clk
0:00:59.1]} 20. Bd2 {[%clk 0:02:08.8]} 20... Qxb5 {[%clk 0:00:38.2]} 21. axb5
{[%clk 0:02:08]} 21... Rxa3 {[%clk 0:00:40.1]} 22. Rb1 {[%clk 0:01:26.7]} 22...
Rxb5 {[%clk 0:00:40.6]} 23. g3 {[%clk 0:01:25.4]} 23... Raxb3 {[%clk 0:00:36.5]}
24. Rxb3 {[%clk 0:01:27.3]} 24... Rxb3 {[%clk 0:00:38.4]} 25. f4 {[%clk
0:01:28.3]} 25... Nc4 {[%clk 0:00:39.4]} 26. fxg5 {[%clk 0:01:24.2]} 26... Bd4+
{[%clk 0:00:38.9]} 27. Kh1 {[%clk 0:01:14.3]} 27... Nxd2 {[%clk 0:00:36.6]} 28.
Qxd2 {[%clk 0:01:09.4]} 28... Rb1+ {[%clk 0:00:37.7]} 29. Kg2 {[%clk 0:01:08.8]}
29... Rb2 {[%clk 0:00:38.8]} 0-1

[Event "*** Titled Tuesday Blitz"]
[Site "Chess.com"]
[Date "2019.02.05"]
[Round "7"]
[White "Ekko_li"]
[Black "KhalilMousavi77"]
[Result "0-1"]
[WhiteElo "2468"]
[BlackElo "2727"]
[TimeControl "180+2"]
[EndTime "14:38:02 PST"]
[Termination "KhalilMousavi77 won by resignation"]

1. e4 {[%clk 0:03:01.9]} 1... c5 {[%clk 0:02:58.6]} 2. Nf3 {[%clk 0:03:02.6]}
2... d6 {[%clk 0:02:59.1]} 3. Bb5+ {[%clk 0:03:00.5]} 3... Bd7 {[%clk
0:02:58.7]} 4. Bxd7+ {[%clk 0:02:59.5]} 4... Nxd7 {[%clk 0:02:58.4]} 5. O-O
{[%clk 0:02:59.9]} 5... g6 {[%clk 0:02:57.5]} 6. c3 {[%clk 0:03:00]} 6... Ngf6
{[%clk 0:02:55.4]} 7. Qe2 {[%clk 0:02:57.8]} 7... Bg7 {[%clk 0:02:55.1]} 8. d4
{[%clk 0:02:58.7]} 8... cxd4 {[%clk 0:02:54.7]} 9. cxd4 {[%clk 0:02:59.3]} 9...
O-O {[%clk 0:02:56.4]} 10. Nc3 {[%clk 0:02:59.5]} 10... e5 {[%clk 0:02:52]} 11.
Rd1 {[%clk 0:02:45.5]} 11... exd4 {[%clk 0:02:50]} 12. Nxd4 {[%clk 0:02:44.8]}
12... a6 {[%clk 0:02:48.3]} 13. Nb3 {[%clk 0:02:24.8]} 13... Qe7 {[%clk
0:02:47.8]} 14. Qd3 {[%clk 0:02:17.7]} 14... Rfe8 {[%clk 0:02:37.3]} 15. Qxd6
{[%clk 0:02:02.7]} 15... Qxd6 {[%clk 0:02:35.7]} 16. Rxd6 {[%clk 0:02:04.6]}
16... Nxe4 {[%clk 0:02:37.6]} 17. Nxe4 {[%clk 0:01:48.8]} 17... Rxe4 {[%clk
0:02:39.5]} 18. Be3 {[%clk 0:01:49.7]} 18... Ne5 {[%clk 0:02:40.3]} 19. Rad1
{[%clk 0:01:42.4]} 19... Nc4 {[%clk 0:02:37.8]} 20. Rd8+ {[%clk 0:01:42.7]}
20... Re8 {[%clk 0:02:39]} 21. Rxa8 {[%clk 0:01:42.6]} 21... Rxa8 {[%clk
0:02:40.9]} 22. Rd7 {[%clk 0:01:42.5]} 22... b5 {[%clk 0:02:41.7]} 23. Bd4
{[%clk 0:01:34.6]} 23... Bxd4 {[%clk 0:02:42.7]} 24. Nxd4 {[%clk 0:01:36.5]}
24... Nxb2 {[%clk 0:02:44.1]} 25. Nc6 {[%clk 0:01:37.5]} 25... Re8 {[%clk
0:02:38.3]} 26. h4 {[%clk 0:01:34.7]} 26... Re6 {[%clk 0:02:33.1]} 27. Nd8
{[%clk 0:01:32]} 27... Rf6 {[%clk 0:02:32.5]} 28. f3 {[%clk 0:01:27.5]} 28...
Na4 {[%clk 0:02:33]} 29. Kf2 {[%clk 0:01:25.7]} 29... Nc3 {[%clk 0:02:33.4]} 30.
a3 {[%clk 0:01:21.3]} 30... Rf4 {[%clk 0:02:32]} 31. Kg3 {[%clk 0:01:13.2]}
31... Ne2+ {[%clk 0:02:32.2]} 32. Kf2 {[%clk 0:01:13.7]} 32... Nc3 {[%clk
0:02:33.6]} 33. Kg3 {[%clk 0:01:15.1]} 33... Rf6 {[%clk 0:02:34.8]} 34. Kg4
{[%clk 0:01:14.5]} 34... h5+ {[%clk 0:02:34.8]} 35. Kg5 {[%clk 0:01:10.9]} 35...
Kg7 {[%clk 0:02:35.5]} 36. g4 {[%clk 0:01:11.6]} 36... Rxf3 {[%clk 0:02:24.3]}
37. Ne6+ {[%clk 0:01:09.7]} 37... Kh7 {[%clk 0:02:25.1]} 38. Nf8+ {[%clk
0:00:54]} 38... Kg8 {[%clk 0:02:23.9]} 39. Rd8 {[%clk 0:00:53.2]} 39... Kg7
{[%clk 0:02:22.7]} 40. gxh5 {[%clk 0:00:48.9]} 40... Rg3+ {[%clk 0:02:19.2]} 41.
Kf4 {[%clk 0:00:48.9]} 41... Ne2+ {[%clk 0:02:21.1]} 42. Ke4 {[%clk 0:00:50]}
42... gxh5 {[%clk 0:02:20.1]} 43. Nd7 {[%clk 0:00:49.2]} 43... Rxa3 {[%clk
0:02:18.7]} 0-1

[Event "*** Titled Tuesday Blitz"]
[Site "Chess.com"]
[Date "2019.02.05"]
[Round "7"]
[White "Korchmar_Vasiliy"]
[Black "cherryandmint"]
[Result "1-0"]
[WhiteElo "2764"]
[BlackElo "2626"]
[TimeControl "180+2"]
[EndTime "14:38:09 PST"]
[Termination "Korchmar_Vasiliy won by resignation"]

1. d4 {[%clk 0:03:01.5]} 1... d5 {[%clk 0:02:58.9]} 2. c4 {[%clk 0:03:02.7]}
2... e6 {[%clk 0:03:00.8]} 3. Nf3 {[%clk 0:03:03.1]} 3... Nf6 {[%clk 0:03:02.3]}
4. g3 {[%clk 0:03:04.6]} 4... Be7 {[%clk 0:03:03.4]} 5. Bg2 {[%clk 0:03:05.6]}
5... O-O {[%clk 0:03:05.3]} 6. O-O {[%clk 0:03:07.2]} 6... dxc4 {[%clk
0:03:06.6]} 7. Ne5 {[%clk 0:03:08.5]} 7... Nc6 {[%clk 0:03:07.4]} 8. Bxc6 {[%clk
0:03:09.7]} 8... bxc6 {[%clk 0:03:09.3]} 9. Nxc6 {[%clk 0:03:11.5]} 9... Qe8
{[%clk 0:03:10.4]} 10. Nxe7+ {[%clk 0:03:13.4]} 10... Qxe7 {[%clk 0:03:12.3]}
11. Qc2 {[%clk 0:03:15.2]} 11... e5 {[%clk 0:03:12.5]} 12. dxe5 {[%clk
0:03:15.9]} 12... Qxe5 {[%clk 0:03:13.1]} 13. Bf4 {[%clk 0:03:17.8]} 13... Qh5
{[%clk 0:02:54.7]} 14. Nc3 {[%clk 0:03:18.3]} 14... Bb7 {[%clk 0:02:42.1]} 15.
f3 {[%clk 0:03:09.6]} 15... Qc5+ {[%clk 0:02:28.2]} 16. Kg2 {[%clk 0:02:52.3]}
16... Rfe8 {[%clk 0:01:57.4]} 17. Rad1 {[%clk 0:02:47.8]} 17... g5 {[%clk
0:01:50.1]} 18. Bc1 {[%clk 0:02:48.4]} 18... g4 {[%clk 0:01:50.1]} 19. Qd2
{[%clk 0:02:39.2]} 19... Re5 {[%clk 0:01:21.9]} 20. Qh6 {[%clk 0:01:59.8]} 20...
Rf5 {[%clk 0:00:54.6]} 21. Be3 {[%clk 0:01:47.9]} 21... Qc6 {[%clk 0:00:46]} 22.
Bd4 {[%clk 0:01:25.7]} 22... Re8 {[%clk 0:00:23]} 23. Kg1 {[%clk 0:01:16.9]}
23... gxf3 {[%clk 0:00:17.2]} 24. exf3 {[%clk 0:01:18.8]} 24... Rxf3 {[%clk
0:00:12.6]} 25. Qg5+ {[%clk 0:01:19.4]} 25... Kf8 {[%clk 0:00:13.5]} 26. Bc5+
{[%clk 0:01:16]} 26... Re7 {[%clk 0:00:12.7]} 27. Rd8+ {[%clk 0:01:12.3]} 1-0

[Event "*** Titled Tuesday Blitz"]
[Site "Chess.com"]
[Date "2019.02.05"]
[Round "7"]
[White "VFernandezB"]
[Black "Caterpiller35"]
[Result "1-0"]
[WhiteElo "2237"]
[BlackElo "2239"]
[TimeControl "180+2"]
[EndTime "14:38:31 PST"]
[Termination "VFernandezB won by resignation"]

1. d4 {[%clk 0:03:01.9]} 1... Nf6 {[%clk 0:03:00.7]} 2. Nf3 {[%clk 0:03:03]}
2... e6 {[%clk 0:03:02]} 3. g3 {[%clk 0:03:04.3]} 3... d5 {[%clk 0:03:01]} 4.
Bg2 {[%clk 0:03:05.5]} 4... Be7 {[%clk 0:03:02.6]} 5. O-O {[%clk 0:03:06.8]}
5... O-O {[%clk 0:03:04.3]} 6. c4 {[%clk 0:03:08]} 6... dxc4 {[%clk 0:03:05.8]}
7. Ne5 {[%clk 0:03:08.6]} 7... Nc6 {[%clk 0:03:05.9]} 8. Bxc6 {[%clk 0:03:07.5]}
8... bxc6 {[%clk 0:03:07.8]} 9. Nd2 {[%clk 0:03:07.4]} 9... c5 {[%clk
0:03:03.3]} 10. Nc6 {[%clk 0:03:05.8]} 10... Qe8 {[%clk 0:03:03.1]} 11. Nxe7+
{[%clk 0:03:06.6]} 11... Qxe7 {[%clk 0:03:05]} 12. Nxc4 {[%clk 0:03:07.6]} 12...
cxd4 {[%clk 0:03:01.5]} 13. Qxd4 {[%clk 0:03:07.7]} 13... Rd8 {[%clk 0:03:01]}
14. Qh4 {[%clk 0:03:06]} 14... c5 {[%clk 0:02:50.9]} 15. Be3 {[%clk 0:03:04]}
15... Bb7 {[%clk 0:02:50.3]} 16. Rfd1 {[%clk 0:03:01.1]} 16... Rd5 {[%clk
0:02:44.6]} 17. Bg5 {[%clk 0:02:50.7]} 17... Rad8 {[%clk 0:02:40.2]} 18. Rxd5
{[%clk 0:02:48.8]} 18... Rxd5 {[%clk 0:02:16.1]} 19. Ne3 {[%clk 0:02:36.4]}
19... Rd4 {[%clk 0:02:13.9]} 20. Bxf6 {[%clk 0:02:34.2]} 20... Qxf6 {[%clk
0:01:53.7]} 21. Qxf6 {[%clk 0:02:34.5]} 21... gxf6 {[%clk 0:01:55.6]} 22. Rc1
{[%clk 0:02:35.1]} 22... Rd2 {[%clk 0:01:52.9]} 23. Rc2 {[%clk 0:02:24.6]} 23...
Rxc2 {[%clk 0:01:51.6]} 24. Nxc2 {[%clk 0:02:25]} 24... Kf8 {[%clk 0:01:52.3]}
25. Ne3 {[%clk 0:02:24.9]} 25... Ke7 {[%clk 0:01:53.4]} 26. Kf1 {[%clk
0:02:25.6]} 26... Kd6 {[%clk 0:01:54.2]} 27. Ke1 {[%clk 0:02:26.7]} 27... f5
{[%clk 0:01:55.6]} 28. Kd2 {[%clk 0:02:27.6]} 28... f6 {[%clk 0:01:56.9]} 29.
Kc3 {[%clk 0:02:26]} 29... Ba6 {[%clk 0:01:54.1]} 30. Nc4+ {[%clk 0:02:23.4]}
30... Kd5 {[%clk 0:01:54.8]} 31. Ne3+ {[%clk 0:02:24.6]} 31... Ke4 {[%clk
0:01:53.2]} 32. Kd2 {[%clk 0:02:25.6]} 32... f4 {[%clk 0:01:50.4]} 33. Ng4
{[%clk 0:02:25.5]} 33... fxg3 {[%clk 0:01:44]} 34. hxg3 {[%clk 0:02:25.2]} 34...
Kf5 {[%clk 0:01:44.7]} 35. f3 {[%clk 0:02:23.8]} 35... h5 {[%clk 0:01:43.6]} 36.
e4+ {[%clk 0:02:22.7]} 36... Kg5 {[%clk 0:01:41.6]} 37. Nf2 {[%clk 0:02:22.9]}
37... f5 {[%clk 0:01:28.7]} 38. f4+ {[%clk 0:02:22.1]} 38... Kg6 {[%clk
0:01:27.2]} 39. Ke3 {[%clk 0:02:22.2]} 39... Bb7 {[%clk 0:01:21.2]} 40. e5
{[%clk 0:02:21.7]} 40... Bd5 {[%clk 0:01:17.1]} 41. a3 {[%clk 0:02:22.9]} 41...
a5 {[%clk 0:01:04.6]} 42. Nd3 {[%clk 0:02:23.6]} 42... c4 {[%clk 0:01:04.1]} 43.
Nc5 {[%clk 0:02:24.7]} 43... h4 {[%clk 0:01:00.8]} 44. gxh4 {[%clk 0:02:24.8]}
44... Kh5 {[%clk 0:01:01.9]} 45. a4 {[%clk 0:02:23.9]} 45... Kxh4 {[%clk
0:01:02.6]} 46. Nd7 {[%clk 0:02:21.7]} 46... Bc6 {[%clk 0:00:55.5]} 47. Nb6
{[%clk 0:02:21.9]} 47... Bxa4 {[%clk 0:00:54.3]} 48. Nxa4 {[%clk 0:02:22.6]}
48... Kg3 {[%clk 0:00:55.5]} 49. Nc5 {[%clk 0:02:23.3]} 49... Kg4 {[%clk
0:00:54.7]} 50. Nxe6 {[%clk 0:02:24.1]} 50... a4 {[%clk 0:00:56.2]} 51. Nc5
{[%clk 0:02:22.2]} 51... c3 {[%clk 0:00:44.9]} 52. bxc3 {[%clk 0:02:23]} 52...
a3 {[%clk 0:00:45.8]} 53. Nb3 {[%clk 0:02:23.9]} 53... a2 {[%clk 0:00:47.7]} 54.
Na1 {[%clk 0:02:24.6]} 54... Kh5 {[%clk 0:00:49.6]} 55. Nc2 {[%clk 0:02:25.5]}
55... Kg6 {[%clk 0:00:50.5]} 56. c4 {[%clk 0:02:26.9]} 56... Kf7 {[%clk
0:00:51.7]} 57. Kd4 {[%clk 0:02:28.5]} 57... Ke6 {[%clk 0:00:53.3]} 58. Kc5
{[%clk 0:02:29.7]} 1-0

[Event "*** Titled Tuesday Blitz"]
[Site "Chess.com"]
[Date "2019.02.05"]
[Round "7"]
[White "TheBigBadChessDad"]
[Black "1e41-0"]
[Result "0-1"]
[WhiteElo "2285"]
[BlackElo "2531"]
[TimeControl "180+2"]
[EndTime "14:38:31 PST"]
[Termination "1e41-0 won by resignation"]

1. d4 {[%clk 0:03:01.9]} 1... Nf6 {[%clk 0:03:00.5]} 2. Nf3 {[%clk 0:03:02.8]}
2... c5 {[%clk 0:03:00.9]} 3. c3 {[%clk 0:03:03.6]} 3... d5 {[%clk 0:03:00.6]}
4. Bf4 {[%clk 0:03:04]} 4... Nc6 {[%clk 0:03:00.6]} 5. e3 {[%clk 0:03:05.2]}
5... Qb6 {[%clk 0:03:00.6]} 6. Qb3 {[%clk 0:03:05.6]} 6... c4 {[%clk 0:03:01.9]}
7. Qc2 {[%clk 0:03:06.7]} 7... Bf5 {[%clk 0:03:02.4]} 8. Qc1 {[%clk 0:03:08]}
8... e6 {[%clk 0:03:03]} 9. Nbd2 {[%clk 0:03:09.2]} 9... Be7 {[%clk 0:03:02.1]}
10. b3 {[%clk 0:03:10.3]} 10... cxb3 {[%clk 0:03:01.7]} 11. axb3 {[%clk
0:03:11.2]} 11... Rc8 {[%clk 0:03:00.8]} 12. Qb2 {[%clk 0:03:06.8]} 12... O-O
{[%clk 0:03:00.3]} 13. Rc1 {[%clk 0:03:00.3]} 13... a5 {[%clk 0:02:41.1]} 14. h3
{[%clk 0:02:51.1]} 14... Ne4 {[%clk 0:02:09.4]} 15. Be2 {[%clk 0:02:38.4]} 15...
a4 {[%clk 0:02:02.7]} 16. O-O {[%clk 0:02:31.8]} 16... axb3 {[%clk 0:02:00.1]}
17. Qxb3 {[%clk 0:02:27.8]} 17... Qxb3 {[%clk 0:01:38.8]} 18. Nxb3 {[%clk
0:02:28.8]} 18... Ba3 {[%clk 0:01:35.7]} 19. Ra1 {[%clk 0:01:56.8]} 19... Nxc3
{[%clk 0:01:33.5]} 20. Rxa3 {[%clk 0:01:42.2]} 20... Nxe2+ {[%clk 0:01:34.4]}
21. Kh2 {[%clk 0:01:42.9]} 21... Nxf4 {[%clk 0:01:36.3]} 22. exf4 {[%clk
0:01:43.8]} 22... Be4 {[%clk 0:01:15.5]} 23. Nfd2 {[%clk 0:01:16]} 23... Bd3
{[%clk 0:01:13.2]} 24. Rc1 {[%clk 0:01:08.2]} 24... b6 {[%clk 0:01:09.9]} 25.
Rc3 {[%clk 0:00:56.6]} 25... Be2 {[%clk 0:01:04.9]} 26. Re3 {[%clk 0:00:43.3]}
26... Bb5 {[%clk 0:01:05.9]} 27. Nf3 {[%clk 0:00:35.1]} 27... Bc4 {[%clk
0:01:04.7]} 28. Nbd2 {[%clk 0:00:35.3]} 28... b5 {[%clk 0:01:04.7]} 29. Nb3
{[%clk 0:00:34.6]} 29... b4 {[%clk 0:01:02.8]} 30. Ra4 {[%clk 0:00:35.8]} 30...
Bxb3 {[%clk 0:00:58.4]} 31. Rxb3 {[%clk 0:00:36.1]} 31... Ra8 {[%clk 0:00:59.9]}
32. Rxa8 {[%clk 0:00:35.7]} 32... Rxa8 {[%clk 0:01:01.8]} 33. Ne5 {[%clk
0:00:35.5]} 33... Nxe5 {[%clk 0:00:56.6]} 34. fxe5 {[%clk 0:00:36.4]} 34... Ra4
{[%clk 0:00:57.9]} 35. Kg3 {[%clk 0:00:36.5]} 35... Ra3 {[%clk 0:00:57.4]} 0-1